bitfinex-derivatives/quotes_SOLF0:USTF0_20250212
["timestamp","ask_amount","ask_price","bid_price","bid_amount"]
[1739326813311,0.03603706,196.38,196.34,5.0939]
[1739326813516,0.03603706,196.38,196.32,8.91776118]
[1739326814113,0.03603706,196.38,196.33,5.094]
[1739326814314,0.03603706,196.38,196.32,8.91776118]
[1739326814917,0.03603706,196.38,196.34,8.91776118]
[1739326815215,8.95379824,196.38,196.32,8.91776118]
[1739326815416,8.95379824,196.38,196.34,5.0937]
[1739326816711,8.95379824,196.38,196.32,8.91776118]
[1739326817017,8.95379824,196.38,196.35,5.0936]
[1739326817518,8.95379824,196.38,196.32,8.91776118]
[1739326817713,0.03603706,196.38,196.37,5.0931]
[1739326819917,3.706e-05,196.38,196.37,5.0931]
[1739326824519,3.706e-05,196.38,196.36,8.95183221]
[1739326824723,3.706e-05,196.38,196.36,0.03407103]
[1739326825922,3.706e-05,196.38,196.36,8.95183221]
[1739326826625,3.706e-05,196.38,196.37,5.0931]
[1739326828626,14.00806118,196.48,196.42,5.0916]
[1739326828825,8.91776118,196.48,196.42,14.00936118]
[1739326829327,14.00806118,196.48,196.43,5.0916]
[1739326829625,5.0903,196.48,196.43,5.0916]
[1739326829825,0.03387934,196.47,196.44,0.0344109]
[1739326830025,5.12457934,196.47,196.44,0.0344109]
[1739326831130,5.0909,196.46,196.44,0.0344109]
[1739326832632,5.12447934,196.47,196.44,0.0344109]
[1739326833122,0.03387934,196.47,196.44,5.1257109]
[1739326833321,0.03387934,196.47,196.44,0.0344109]
[1739326834523,0.03387934,196.47,196.44,5.1257109]
[1739326834723,0.03387934,196.47,196.44,0.0344109]
[1739326834930,5.0911,196.45,196.44,0.0344109]
[1739326846438,0.03387934,196.47,196.44,0.0344109]
[1739326847337,0.03387934,196.47,196.45,5.0909]
[1739326847738,0.03387934,196.47,196.44,0.0344109]
[1739326850242,5.0908,196.46,196.44,0.0344109]
[1739326850545,0.03387934,196.47,196.44,0.0344109]
[1739326851040,5.0908,196.46,196.44,0.0344109]
[1739326851640,0.03387934,196.47,196.44,0.0344109]
[1739326851843,5.0911,196.45,196.44,0.0344109]
[1739326852443,5.0909,196.46,196.44,0.0344109]
[1739326854144,0.03387934,196.47,196.44,8.99198378]
[1739326854552,0.03387934,196.47,196.46,8.95757288]
[1739326854747,0.03387934,196.47,196.46,14.04837288]
[1739326855245,45.85256003,196.53,196.47,5.0904]
[1739326855442,45.85256003,196.53,196.49,8.95757288]
[1739326855847,5.0893,196.52,196.47,8.95757288]
[1739326856545,5.12564977,196.51,196.48,0.03799368]
[1739326856741,0.03604977,196.51,196.48,0.03799368]
[1739326857141,8.95757288,196.5,196.48,0.03799368]
[1739326857849,5.09,196.49,196.48,0.03799368]
[1739326861652,8.95757288,196.5,196.39,14.04997288]
[1739326861851,5.0913,196.45,196.39,8.95757288]
[1739326862754,5.0913,196.45,196.4,5.0923]
[1739326862953,0.03791089,196.44,196.41,8.95757288]
[1739326864456,0.03791089,196.44,196.43,8.95757288]
[1739326864654,0.03791089,196.44,196.43,14.04917288]
[1739326866556,0.03791089,196.44,196.41,8.95757288]
[1739326867148,0.03791089,196.44,196.4,0.03257595]
[1739326867352,5.12931089,196.44,196.4,0.03257595]
[1739326868853,0.03791089,196.44,196.41,8.95757288]
[1739326871657,5.12931089,196.44,196.41,8.95757288]
[1739326872657,0.03791089,196.44,196.41,8.95757288]
[1739326875762,5.0918,196.43,196.4,0.03257595]
[1739326875963,8.99548377,196.44,196.4,0.03257595]
[1739326876263,8.95757288,196.42,196.4,0.03257595]
[1739326877158,5.0921,196.41,196.4,0.03257595]
[1739326884572,12.02587288,196.42,196.33,8.95757288]
[1739326884772,8.95757288,196.38,196.33,8.95757288]
[1739326885269,5.0934,196.36,196.33,8.95757288]
[1739326885665,5.13123909,196.36,196.33,8.95757288]
[1739326886166,5.0937,196.35,196.33,8.95757288]
[1739326886572,0.03783909,196.36,196.33,8.95757288]
[1739326887571,5.13143909,196.36,196.33,8.95757288]
[1739326888269,5.0937,196.35,196.33,8.95757288]
[1739326889472,5.13123909,196.36,196.33,8.95757288]
[1739326890378,0.03783909,196.36,196.33,8.95757288]
[1739326890674,5.0937,196.35,196.33,8.95757288]
[1739326891175,0.03783909,196.36,196.33,8.95757288]
[1739326891371,5.13123909,196.36,196.33,8.95757288]
[1739326891979,0.03783909,196.36,196.33,8.95757288]
[1739326892470,0.03783909,196.36,196.33,14.05167288]
[1739326894080,0.03783909,196.36,196.33,8.95757288]
[1739326894980,5.0939,196.35,196.31,8.95757288]
[1739326896279,8.99541197,196.36,196.31,8.95757288]
[1739326896486,8.99541197,196.36,196.3,0.19335]
[1739326896887,5.0943,196.33,196.3,0.19335]
[1739326897185,8.99541197,196.36,196.3,0.19335]
[1739326898084,8.99541197,196.36,196.29,8.95757288]
[1739326898582,8.99541197,196.36,196.25,14.05357288]
[1739326898583,8.95757288,196.32,196.25,14.05357288]
[1739326898987,8.99295529,196.3,196.25,14.05357288]
[1739326899185,8.95757288,196.3,196.25,14.05357288]
[1739326899486,0.03763194,196.29,196.25,8.95757288]
[1739326900987,0.03763194,196.29,196.25,14.05357288]
[1739326901182,0.03763194,196.29,196.25,9.16605288]
[1739326901888,0.03763194,196.29,196.26,5.0958]
[1739326902091,0.03763194,196.29,196.25,9.16605288]
[1739326902286,0.03763194,196.29,196.27,8.95757288]
[1739326902485,0.03763194,196.29,196.28,5.0955]
[1739326902889,8.95757288,196.38,196.33,5.094]
[1739326903090,8.95757288,196.4,196.34,8.95757288]
[1739326903291,12.02587288,196.42,196.36,8.95757288]
[1739326903589,8.95757288,196.42,196.38,5.0928]
[1739326903983,8.9949897,196.42,196.38,0.03409774]
[1739326904483,0.03741682,196.42,196.38,0.03409774]
[1739326904687,0.03741682,196.42,196.4,5.0924]
[1739326904888,0.03741682,196.42,196.38,0.03409774]
[1739326905286,0.03741682,196.42,196.39,5.0924]
[1739326905483,0.03741682,196.42,196.38,8.99167062]
[1739326905886,0.03741682,196.42,196.4,8.95757288]
[1739326906483,0.03741682,196.42,196.38,8.99167062]
[1739326906787,0.03741682,196.42,196.41,5.0921]
[1739326908594,0.03741682,196.42,196.38,5.12689774]
[1739326909092,0.03741682,196.42,196.38,0.03409774]
[1739326911397,0.03741682,196.42,196.39,5.0924]
[1739326911698,0.03741682,196.42,196.38,0.03409774]
[1739326913994,13.99571231,196.4,196.38,0.03409774]
[1739326914192,5.0926,196.39,196.38,0.03409774]
[1739326925812,0.03741682,196.42,196.38,0.03409774]
[1739326926409,5.0924,196.4,196.38,0.03409774]
[1739326927310,5.0921,196.41,196.38,0.03409774]
[1739326928111,5.12931682,196.42,196.38,5.12699774]
[1739326928410,0.03741682,196.42,196.38,0.03409774]
[1739326928914,0.03741682,196.42,196.38,5.12669774]
[1739326929213,0.03741682,196.42,196.38,0.03409774]
[1739326929412,5.12941682,196.42,196.38,0.03409774]
[1739326929711,0.03741682,196.42,196.38,0.03409774]
[1739326929912,5.0926,196.39,196.38,0.03409774]
[1739326930112,0.03741682,196.42,196.38,0.03409774]
[1739326930513,5.12951682,196.42,196.38,0.03409774]
[1739326931210,0.03741682,196.42,196.38,0.03409774]
[1739326932610,0.03741682,196.42,196.4,5.0921]
[1739326932915,0.03741682,196.42,196.38,0.03409774]
[1739326933215,0.03741682,196.42,196.39,5.0926]
[1739326933416,0.03741682,196.42,196.38,0.03409774]
[1739326934715,5.0922,196.41,196.38,0.03409774]
[1739326936218,0.03741682,196.42,196.38,0.03409774]
[1739326936719,0.03741682,196.42,196.39,5.0926]
[1739326937120,0.03741682,196.42,196.38,0.03409774]
[1739326939820,5.12931682,196.42,196.38,5.12689774]
[1739326945834,5.12931682,196.42,196.38,0.03409774]
[1739326945835,0.03741682,196.42,196.38,0.03409774]
[1739326946533,0.03741682,196.42,196.39,5.0926]
[1739326947230,5.12941682,196.42,196.38,5.12689774]
[1739326947627,0.03741682,196.42,196.38,0.03409774]
[1739326947832,5.0922,196.41,196.38,0.03409774]
[1739326948534,5.0926,196.39,196.38,0.03409774]
[1739326954740,0.03741682,196.42,196.38,0.03409774]
[1739326955736,0.03741682,196.42,196.38,5.12679774]
[1739326955938,0.03741682,196.42,196.38,0.03409774]
[1739326956137,5.0921,196.41,196.38,0.03409774]
[1739326957032,0.03741682,196.42,196.38,0.03409774]
[1739326957238,5.0926,196.39,196.38,0.03409774]
[1739326963240,19.08831231,196.39,196.38,0.03409774]
[1739326966850,13.99571231,196.39,196.31,5.0947]
[1739326967050,5.0939,196.34,196.31,5.0947]
[1739326967740,13.99571231,196.39,196.3,0.19839]
[1739326967944,0.03326059,196.36,196.3,0.19839]
[1739326968352,0.03326059,196.36,196.3,5.29339]
[1739326968948,5.0937,196.35,196.3,5.29339]
[1739326970349,0.03326059,196.36,196.3,0.19839]
[1739326971852,5.094,196.34,196.3,0.19839]
[1739326973656,0.03326059,196.36,196.32,5.0944]
[1739326974055,0.03326059,196.36,196.31,8.96912387]
[1739326974458,5.12686059,196.36,196.31,14.06362387]
[1739326975356,5.12686059,196.36,196.31,8.96912387]
[1739326975556,5.12686059,196.36,196.32,5.0944]
[1739326976158,14.09598446,196.36,196.32,5.0944]
[1739326976357,5.094,196.34,196.3,5.29319]
[1739326977259,9.00238446,196.36,196.3,0.19839]
[1739326977959,9.00238446,196.36,196.31,5.0947]
[1739326978759,5.0937,196.35,196.31,5.0947]
[1739326978953,5.0937,196.35,196.3,5.0949]
[1739326979960,5.0946,196.32,196.27,8.96912387]
[1739326980261,8.96912387,196.34,196.27,8.96912387]
[1739326980462,0.03520508,196.31,196.27,8.96912387]
[1739326981161,0.03520508,196.31,196.27,14.06482387]
[1739326982062,0.03520508,196.31,196.27,8.96912387]
[1739326982663,0.03520508,196.31,196.29,8.96912387]
[1739326983662,0.03520508,196.31,196.3,5.095]
[1739326984062,8.96912387,196.4,196.29,8.96912387]
[1739326984260,8.96912387,196.4,196.34,8.96912387]
[1739326984764,8.96912387,196.4,196.32,8.96912387]
[1739326985162,0.03746217,196.38,196.34,0.03453064]
[1739326985363,0.03746217,196.38,196.34,9.00365451]
[1739326986659,5.13036217,196.38,196.34,9.00365451]
[1739326986855,0.03746217,196.38,196.34,9.00365451]
[1739326988166,0.03746217,196.38,196.36,8.96912387]
[1739326989161,0.03746217,196.38,196.36,14.06252387]
[1739326989469,8.96912387,196.44,196.36,8.96912387]
[1739326989663,5.0919,196.42,196.38,8.96912387]
[1739326990359,5.0922,196.41,196.37,5.0929]
[1739326990557,5.0922,196.41,196.38,0.03890908]
[1739326992869,0.03653126,196.42,196.38,0.03890908]
[1739326993169,0.03653126,196.42,196.38,5.13170908]
[1739326993468,0.03653126,196.42,196.38,9.00803295]
[1739326993670,5.0923,196.41,196.38,9.00803295]
[1739326993865,0.03653126,196.42,196.38,9.00803295]
[1739326994168,5.12863126,196.42,196.38,9.00803295]
[1739326994569,5.12863126,196.42,196.38,14.10093295]
[1739326994871,5.12863126,196.42,196.4,8.96912387]
[1739326994872,0.03653126,196.42,196.4,8.96912387]
[1739326995170,0.03653126,196.42,196.41,5.0921]
[1739327000470,0.03653126,196.42,196.4,14.06142387]
[1739327001673,0.03653126,196.42,196.4,8.96912387]
[1739327001870,0.03653126,196.42,196.38,9.00803295]
[1739327002071,5.12853126,196.42,196.38,9.00803295]
[1739327003565,5.0922,196.41,196.38,9.00803295]
[1739327003869,0.03653126,196.42,196.38,9.00803295]
[1739327004268,5.12853126,196.42,196.38,9.00803295]
[1739327005379,0.03653126,196.42,196.39,5.0926]
[1739327007781,0.03653126,196.42,196.4,5.0922]
[1739327007978,0.03653126,196.42,196.4,8.96912387]
[1739327008380,0.03653126,196.42,196.41,5.0921]
[1739327008575,12.06872387,196.52,196.44,8.96912387]
[1739327008777,10.47372387,196.52,196.46,8.96912387]
[1739327008982,14.05842387,196.52,196.46,8.96912387]
[1739327009683,0.03728797,196.51,196.47,0.03683854]
[1739327009879,0.03728797,196.51,196.47,5.12733854]
[1739327010177,0.03728797,196.51,196.48,8.96912387]
[1739327010382,0.03728797,196.51,196.49,5.09]
[1739327010577,0.03728797,196.51,196.48,8.96912387]
[1739327011483,0.03728797,196.51,196.5,8.96912387]
[1739327011686,0.03728797,196.51,196.5,14.05892387]
[1739327012682,0.03728797,196.51,196.5,8.96912387]
[1739327013080,0.03728797,196.51,196.49,5.09]
[1739327013480,0.03728797,196.51,196.5,14.05892387]
[1739327013684,0.03728797,196.51,196.5,8.96912387]
[1739327013882,0.03728797,196.51,196.47,0.03683854]
[1739327013883,0.03728797,196.51,196.48,8.96912387]
[1739327019187,0.03728797,196.51,196.48,14.05942387]
[1739327019378,0.03728797,196.51,196.48,8.96912387]
[1739327021690,5.12688797,196.51,196.48,8.96912387]
[1739327022291,0.03728797,196.51,196.48,8.96912387]
[1739327022786,0.03728797,196.51,196.47,0.03683854]
[1739327023086,5.0899,196.5,196.47,0.03683854]
[1739327023294,0.03728797,196.51,196.47,0.03683854]
[1739327024193,5.0898,196.5,196.47,0.03683854]
[1739327024392,0.03728797,196.51,196.47,0.03683854]
[1739327025895,5.0902,196.49,196.47,0.03683854]
[1739327026089,8.96912387,196.5,196.47,0.03683854]
[1739327026290,14.05942387,196.48,196.47,0.03683854]
[1739327026986,8.96912387,196.48,196.47,0.03683854]
[1739327027190,5.0901,196.49,196.47,0.03683854]
[1739327028896,8.96912387,196.5,196.47,0.03683854]
[1739327029102,5.0898,196.5,196.47,0.03683854]
[1739327030291,5.0901,196.49,196.47,0.03683854]
[1739327030488,8.96912387,196.5,196.47,0.03683854]
[1739327030798,5.09,196.49,196.47,0.03683854]
[1739327031397,8.96912387,196.5,196.47,0.03683854]
[1739327031593,5.0903,196.48,196.47,0.03683854]
[1739327033199,14.05942387,196.48,196.47,0.03683854]
[1739327038502,5.0916,196.43,196.4,8.96912387]
[1739327039899,5.12939567,196.43,196.4,9.0064019]
[1739327040096,5.12939567,196.43,196.4,14.0988019]
[1739327040303,0.03779567,196.43,196.42,8.96912387]
[1739327043504,0.03779567,196.43,196.42,14.06102387]
[1739327043704,8.96912387,196.52,196.42,8.96912387]
[1739327043906,5.0898,196.5,196.45,14.06002387]
[1739327044206,8.96912387,196.52,196.45,8.96912387]
[1739327044407,8.96912387,196.52,196.47,8.96912387]
[1739327044603,8.96912387,196.54,196.47,8.96912387]
[1739327044905,0.03346844,196.52,196.49,0.03764027]
[1739327045106,0.03346844,196.52,196.49,5.12764027]
[1739327045405,0.03346844,196.52,196.49,14.09676414]
[1739327045594,0.03346844,196.52,196.51,8.96912387]
[1739327048307,0.03346844,196.52,196.51,14.05862387]
[1739327049505,5.0877,196.58,196.53,5.089]
[1739327049708,5.0877,196.58,196.54,8.96912387]
[1739327050605,5.0881,196.57,196.54,9.00589301]
[1739327053309,5.0885,196.55,196.54,0.03676914]
[1739327067024,8.96912387,196.56,196.45,8.96912387]
[1739327067223,5.0899,196.5,196.45,8.96912387]
[1739327067616,5.0901,196.49,196.45,8.96912387]
[1739327067820,8.96912387,196.52,196.45,8.96912387]
[1739327068226,5.1240029,196.5,196.47,0.03642219]
[1739327070618,0.0340029,196.5,196.47,0.03642219]
[1739327070825,5.0901,196.49,196.47,0.03642219]
[1739327071025,0.0340029,196.5,196.47,9.00554606]
[1739327071225,0.0340029,196.5,196.49,8.96912387]
[1739327073628,0.0340029,196.5,196.49,14.05912387]
[1739327074829,8.96912387,196.58,196.52,5.0892]
[1739327075031,8.96912387,196.58,196.52,14.05832387]
[1739327075226,5.0882,196.57,196.52,14.05832387]
[1739327075422,8.96912387,196.58,196.52,8.96912387]
[1739327076030,0.03576092,196.57,196.53,0.03356515]
[1739327076828,0.03576092,196.57,196.54,8.96912387]
[1739327077030,0.03576092,196.57,196.56,5.0882]
[1739327077324,0.03576092,196.57,196.56,14.05732387]
[1739327077725,8.96912387,196.66,196.6,5.087]
[1739327077923,8.96912387,196.66,196.6,8.96912387]
[1739327078831,0.03631294,196.65,196.62,5.0866]
[1739327079528,0.03631294,196.65,196.61,5.12061098]
[1739327080526,5.12221294,196.65,196.61,5.12061098]
[1739327081331,5.12221294,196.65,196.61,0.03371098]
[1739327082727,5.0864,196.64,196.61,0.03371098]
[1739327084328,5.0865,196.63,196.61,0.03371098]
[1739327084529,8.96912387,196.64,196.61,0.03371098]
[1739327085135,8.96912387,196.62,196.61,0.03371098]
[1739327085536,14.05582387,196.62,196.61,0.03371098]
[1739327086738,5.0876,196.59,196.54,8.96912387]
[1739327087232,5.0876,196.59,196.55,5.0884]
[1739327087836,5.1236271,196.59,196.55,5.12053474]
[1739327097948,5.0878,196.58,196.55,0.03213474]
[1739327098439,8.96912387,196.58,196.55,0.03213474]
[1739327098643,5.088,196.57,196.55,0.03213474]
[1739327099343,0.0360271,196.59,196.55,5.12043474]
[1739327099542,0.0360271,196.59,196.55,0.03213474]
[1739327100046,0.0360271,196.59,196.56,14.05732387]
[1739327100946,0.0360271,196.59,196.56,5.0882]
[1739327101345,8.96912387,196.57,196.55,0.03213474]
[1739327102546,14.05712387,196.57,196.55,0.03213474]
[1739327102746,9.00515097,196.59,196.55,0.03213474]
[1739327103549,5.0877,196.58,196.55,0.03213474]
[1739327104248,9.00515097,196.59,196.55,0.03213474]
[1739327104451,5.0882,196.56,196.55,0.03213474]
[1739327111754,9.00515097,196.59,196.55,0.03213474]
[1739327112253,5.088,196.57,196.55,0.03213474]
[1739327112555,9.00515097,196.59,196.55,0.03213474]
[1739327113254,5.0882,196.56,196.55,0.03213474]
[1739327117662,0.0360271,196.59,196.55,0.03213474]
[1739327117856,0.0360271,196.59,196.56,8.96912387]
[1739327118263,0.0360271,196.59,196.58,8.96912387]
[1739327118660,0.0360271,196.59,196.58,14.05682387]
[1739327119359,8.96912387,196.67,196.58,8.96912387]
[1739327119660,5.0854,196.67,196.62,14.05582387]
[1739327120561,0.03488025,196.66,196.63,0.03539968]
[1739327120858,0.03488025,196.66,196.64,8.96912387]
[1739327123163,0.03488025,196.66,196.63,0.03539968]
[1739327123660,5.0862,196.64,196.63,0.03539968]
[1739327125868,5.0859,196.65,196.63,0.03539968]
[1739327126169,0.03488025,196.66,196.63,0.03539968]
[1739327127761,0.03488025,196.66,196.63,5.12179968]
[1739327128866,0.03488025,196.66,196.64,8.96912387]
[1739327129066,0.03488025,196.66,196.65,5.0859]
[1739327129664,0.03488025,196.66,196.63,0.03539968]
[1739327130367,5.0859,196.65,196.63,0.03539968]
[1739327130967,8.96912387,196.65,196.63,0.03539968]
[1739327131170,5.0862,196.64,196.63,0.03539968]
[1739327132663,8.96912387,196.65,196.53,8.96912387]
[1739327132966,8.96912387,196.6,196.53,8.96912387]
[1739327133168,8.96912387,196.62,196.55,8.96912387]
[1739327133472,5.0862,196.64,196.59,8.96912387]
[1739327133862,0.03857468,196.63,196.6,0.03413784]
[1739327134072,0.03857468,196.63,196.61,8.96912387]
[1739327134772,0.03857468,196.63,196.62,5.0867]
[1739327137074,109.70912387,196.72,196.65,5.0857]
[1739327137372,8.96912387,196.72,196.66,8.96912387]
[1739327137669,5.0846,196.71,196.65,5.0857]
[1739327137865,18.55517819,196.76,196.63,13.96297819]
[1739327138064,0.03513079,196.71,196.68,0.03660792]
[1739327138270,5.0847,196.7,196.68,0.03660792]
[1739327139271,0.03513079,196.71,196.68,0.03660792]
[1739327139664,5.0849,196.69,196.68,0.03660792]
[1739327141767,0.03513079,196.71,196.68,0.03660792]
[1739327143064,0.03513079,196.71,196.68,5.12160792]
[1739327143771,0.03513079,196.71,196.68,0.03660792]
[1739327144871,5.11953079,196.71,196.68,0.03660792]
[1739327145575,0.03513079,196.71,196.68,5.12170792]
[1739327146876,0.03513079,196.71,196.7,5.0846]
[1739327147072,0.03513079,196.71,196.68,0.03660792]
[1739327148770,0.03513079,196.71,196.68,5.12170792]
[1739327149477,0.03513079,196.71,196.68,0.03660792]
[1739327150876,5.0847,196.7,196.68,0.03660792]
[1739327151275,0.03513079,196.71,196.68,0.03660792]
[1739327151476,5.0849,196.69,196.68,0.03660792]
[1739327152872,5.0847,196.7,196.68,0.03660792]
[1739327153177,0.03513079,196.71,196.68,0.03660792]
[1739327154079,5.0849,196.69,196.68,0.03660792]
[1739327158677,0.03513079,196.71,196.6,13.96297819]
[1739327158883,13.96297819,196.7,196.6,13.96297819]
[1739327159078,5.0861,196.65,196.57,13.96297819]
[1739327159284,5.0861,196.65,196.6,5.087]
[1739327159484,13.96297819,196.7,196.57,13.96297819]
[1739327159684,0.03646847,196.64,196.62,8.94016446]
[1739327159880,8.94016446,196.68,196.62,8.94016446]
[1739327160081,0.03239837,196.65,196.62,8.94016446]
[1739327160483,0.03239837,196.65,196.61,0.03272138]
[1739327160984,5.0862,196.64,196.61,0.03272138]
[1739327161182,0.03239837,196.65,196.61,0.03272138]
[1739327164079,5.11849837,196.65,196.61,0.03272138]
[1739327164784,0.03239837,196.65,196.62,8.94016446]
[1739327165788,0.03239837,196.65,196.63,5.0863]
[1739327166485,0.03239837,196.65,196.62,8.94016446]
[1739327166789,0.03239837,196.65,196.61,0.03272138]
[1739327166983,5.0864,196.64,196.61,0.03272138]
[1739327167184,0.03239837,196.65,196.61,0.03272138]
[1739327167584,5.0862,196.64,196.61,0.03272138]
[1739327167787,0.03239837,196.65,196.61,0.03272138]
[1739327168387,5.11849837,196.65,196.61,5.11962138]
[1739327168587,0.03239837,196.65,196.61,0.03272138]
[1739327169389,0.03239837,196.65,196.62,8.94016446]
[1739327169789,0.03239837,196.65,196.63,5.0862]
[1739327170091,0.03239837,196.65,196.62,8.94016446]
[1739327170285,5.11849837,196.65,196.61,5.11942138]
[1739327170492,0.03239837,196.65,196.61,0.03272138]
[1739327170689,8.94016446,196.64,196.61,0.03272138]
[1739327171891,14.02686446,196.62,196.61,0.03272138]
[1739327174097,5.0867,196.62,196.61,0.03272138]
[1739327179301,0.03239837,196.65,196.61,0.03272138]
[1739327180495,5.0862,196.64,196.61,0.03272138]
[1739327180695,0.03239837,196.65,196.61,0.03272138]
[1739327181400,5.0867,196.62,196.61,0.03272138]
[1739327188010,14.02686446,196.62,196.61,0.03272138]
[1739327189697,8.94016446,196.62,196.54,8.94016446]
[1739327189901,8.94016446,196.6,196.52,14.02936446]
[1739327190106,8.94016446,196.6,196.52,8.94016446]
[1739327191012,0.03897167,196.58,196.54,0.03911821]
[1739327191203,0.03897167,196.58,196.54,8.97928267]
[1739327191403,5.12697167,196.58,196.54,14.06778267]
[1739327191710,0.03897167,196.58,196.54,8.97928267]
[1739327192900,5.088,196.57,196.54,8.97928267]
[1739327193906,0.03897167,196.58,196.54,8.97928267]
[1739327194105,5.12667167,196.58,196.54,14.06798267]
[1739327195007,5.088,196.57,196.54,8.97928267]
[1739327195208,0.03897167,196.58,196.54,8.97928267]
[1739327195409,0.03897167,196.58,196.56,8.94016446]
[1739327195707,0.03897167,196.58,196.57,5.088]
[1739327204117,5.0857,196.66,196.62,5.0865]
[1739327204317,5.0857,196.66,196.63,8.94016446]
[1739327204821,5.0859,196.65,196.63,8.94016446]
[1739327205416,5.0859,196.65,196.62,0.03567049]
[1739327206519,5.12376583,196.66,196.62,5.12227049]
[1739327207521,5.086,196.65,196.62,0.03567049]
[1739327209334,0.03786583,196.66,196.62,0.03567049]
[1739327209723,0.03786583,196.66,196.63,8.94016446]
[1739327210426,0.03786583,196.66,196.63,14.02656446]
[1739327212425,0.03786583,196.66,196.65,14.02606446]
[1739327212727,0.03786583,196.66,196.65,8.94016446]
[1739327214825,0.03786583,196.66,196.65,14.02606446]
[1739327216125,0.03786583,196.66,196.65,8.94016446]
[1739327217521,0.03786583,196.66,196.65,14.02606446]
[1739327217923,0.03786583,196.66,196.65,8.94016446]
[1739327222231,0.03786583,196.66,196.63,8.94016446]
[1739327223134,5.12356583,196.66,196.63,8.94016446]
[1739327224034,0.03786583,196.66,196.63,14.02656446]
[1739327224533,5.12366583,196.66,196.63,8.94016446]
[1739327225033,0.03786583,196.66,196.63,8.94016446]
[1739327225226,0.03786583,196.66,196.65,14.02606446]
[1739327225435,0.03786583,196.66,196.65,8.94016446]
[1739327225635,0.03786583,196.66,196.65,14.02606446]
[1739327228327,0.03786583,196.66,196.65,8.94016446]
[1739327230036,0.03786583,196.66,196.64,5.0861]
[1739327230236,0.03786583,196.66,196.63,14.02646446]
[1739327231437,0.03786583,196.66,196.63,8.94016446]
[1739327231638,0.03786583,196.66,196.64,5.0861]
[1739327231937,0.03786583,196.66,196.65,8.94016446]
[1739327232137,0.03786583,196.66,196.65,14.02606446]
[1739327237445,5.0842,196.72,196.68,5.0851]
[1739327237643,5.0842,196.72,196.68,14.02526446]
[1739327238243,5.0839,196.73,196.69,5.0848]
[1739327238543,5.11707941,196.73,196.69,5.1180792]
[1739327238837,0.03317941,196.73,196.69,0.0332792]
[1739327239142,5.0841,196.72,196.69,0.0332792]
[1739327240840,0.03317941,196.73,196.7,8.94016446]
[1739327241539,0.03317941,196.73,196.7,14.02476446]
[1739327243644,0.03317941,196.73,196.7,8.94016446]
[1739327243948,0.03317941,196.73,196.69,0.0332792]
[1739327244444,5.0843,196.72,196.69,0.0332792]
[1739327245246,0.03317941,196.73,196.7,8.94016446]
[1739327245841,0.03317941,196.73,196.69,0.0332792]
[1739327246141,5.0845,196.71,196.69,0.0332792]
[1739327246340,0.03317941,196.73,196.69,0.0332792]
[1739327246546,5.0846,196.7,196.69,0.0332792]
[1739327247647,5.0854,196.67,196.64,8.94016446]
[1739327247850,8.94016446,196.7,196.64,8.94016446]
[1739327248849,0.03888036,196.69,196.65,0.03912226]
[1739327249151,0.03888036,196.69,196.66,14.02576446]
[1739327249448,0.03888036,196.69,196.65,0.03912226]
[1739327249449,0.03888036,196.69,196.68,8.94016446]
[1739327250349,0.03888036,196.69,196.68,14.02526446]
[1739327251953,8.036e-05,196.69,196.68,14.02526446]
[1739327252154,13.49436446,196.8,196.71,5.0842]
[1739327252451,1.5006,196.8,196.77,8.94016446]
[1739327252646,61.79466606,196.82,196.77,14.02286446]
[1739327252847,61.79466606,196.82,196.79,8.94016446]
[1739327253043,14.95602775,196.84,196.79,8.94016446]
[1739327253245,0.03740472,196.82,196.79,14.05802983]
[1739327253441,0.03740472,196.82,196.79,8.97572983]
[1739327253853,0.03740472,196.82,196.81,8.94016446]
[1739327256145,5.0819,196.81,196.79,8.97572983]
[1739327257351,5.082,196.8,196.79,0.03556537]
[1739327258851,8.94016446,196.8,196.73,8.94016446]
[1739327259651,5.0834,196.75,196.73,8.94016446]
[1739327261654,0.03278702,196.76,196.73,8.94016446]
[1739327262958,5.0833,196.75,196.73,8.94016446]
[1739327263661,0.03278702,196.76,196.73,8.94016446]
[1739327263858,5.0836,196.74,196.73,8.94016446]
[1739327264257,5.0838,196.73,196.72,0.03406685]
[1739327291674,0.03278702,196.76,196.72,0.03406685]
[1739327292171,5.0838,196.74,196.72,0.03406685]
[1739327292571,0.03278702,196.76,196.72,0.03406685]
[1739327292872,5.0838,196.73,196.72,0.03406685]
[1739327338713,8.94016446,196.74,196.61,8.94016446]
[1739327339014,8.94016446,196.67,196.59,8.94016446]
[1739327339717,5.0866,196.63,196.59,8.94016446]
[1739327339918,5.0866,196.63,196.61,0.03762456]
[1739327341012,0.0370144,196.65,196.61,0.03762456]
[1739327342015,5.1231144,196.65,196.61,0.03762456]
[1739327342418,0.0370144,196.65,196.61,0.03762456]
[1739327342618,5.0862,196.64,196.61,0.03762456]
[1739327343018,5.0867,196.62,196.61,0.03762456]